bitfinex/quotes_BTCUSD_20241130
["timestamp","ask_amount","ask_price","bid_price","bid_amount"]
[1732979786486,0.24788362,96688.0,96687.0,0.01357062]
[1732979786691,0.24788362,96688.0,96687.0,0.01057062]
[1732979786905,0.24788362,96688.0,96687.0,0.01457062]
[1732979787552,0.24788362,96688.0,96687.0,0.00600497]
[1732979787798,0.24788362,96688.0,96687.0,0.00300497]
[1732979788009,0.24788362,96688.0,96687.0,0.00500497]
[1732979788218,0.24788362,96688.0,96687.0,0.00400497]
[1732979788430,0.24788362,96688.0,96687.0,0.01426905]
[1732979788658,0.24788362,96688.0,96687.0,0.00500497]
[1732979789102,0.24788362,96688.0,96687.0,0.00400497]
[1732979789519,0.24788362,96688.0,96687.0,0.00300497]
[1732979789965,0.24788362,96688.0,96687.0,0.00600497]
[1732979790190,0.24788362,96688.0,96687.0,0.00200497]
[1732979790463,0.24788362,96688.0,96687.0,0.00500497]
[1732979791509,0.24788362,96688.0,96687.0,0.00600497]
[1732979796423,0.23123123,96688.0,96687.0,0.00600497]
[1732979796674,0.24794715,96688.0,96687.0,0.00600497]
[1732979797089,0.23123123,96688.0,96687.0,0.00600497]
[1732979797833,0.24123123,96688.0,96687.0,9.7e-07]
[1732979800323,0.34407644,96688.0,96687.0,9.7e-07]
[1732979800563,0.34407644,96688.0,96668.0,0.0009998]
[1732979800564,0.236045,96669.0,96668.0,0.0009998]
[1732979801120,0.236045,96669.0,96666.0,0.001727]
[1732979801121,0.103447,96667.0,96666.0,0.001727]
[1732979801365,0.24787768,96667.0,96666.0,0.001727]
[1732979801605,0.246047,96667.0,96666.0,0.001727]
[1732979802356,0.236047,96667.0,96666.0,0.001727]
[1732979802824,0.238047,96667.0,96666.0,0.001727]
[1732979803314,0.236047,96667.0,96666.0,0.001727]
[1732979803550,0.240047,96667.0,96666.0,0.002727]
[1732979803771,0.236047,96667.0,96666.0,0.001727]
[1732979805325,0.237047,96667.0,96666.0,0.001727]
[1732979805847,0.239047,96667.0,96666.0,0.001727]
[1732979806067,0.238047,96667.0,96666.0,0.001727]
[1732979806301,0.237047,96667.0,96666.0,0.001727]
[1732979806769,0.239047,96667.0,96666.0,0.002727]
[1732979807017,0.238047,96667.0,96666.0,0.002727]
[1732979807260,0.236047,96667.0,96666.0,0.001727]
[1732979807498,0.238047,96667.0,96666.0,0.002727]
[1732979808468,0.239047,96667.0,96666.0,0.002727]
[1732979808932,0.236047,96667.0,96666.0,0.001727]
[1732979809185,0.238047,96667.0,96666.0,0.001727]
[1732979809426,0.239047,96667.0,96666.0,0.001727]
[1732979809655,0.241047,96667.0,96666.0,0.001727]
[1732979810129,0.236047,96667.0,96666.0,0.001727]
[1732979810362,0.238047,96667.0,96666.0,0.001727]
[1732979810591,0.23833189,96667.0,96666.0,0.001727]
[1732979810822,0.23733189,96667.0,96666.0,0.001727]
[1732979812277,0.23833189,96667.0,96666.0,0.001727]
[1732979812509,0.23733189,96667.0,96666.0,0.001727]
[1732979812968,0.23833189,96667.0,96666.0,0.001727]
[1732979813193,0.23633189,96667.0,96666.0,0.001727]
[1732979813431,0.23933189,96667.0,96666.0,0.001727]
[1732979813671,0.23733189,96667.0,96666.0,0.001727]
[1732979813923,0.23633189,96667.0,96666.0,0.001727]
[1732979814170,0.23933189,96667.0,96666.0,0.001727]
[1732979815647,0.23951277,96667.0,96666.0,0.001727]
[1732979820827,0.106447,96667.0,96666.0,0.001727]
[1732979821584,0.10827768,96667.0,96666.0,0.001727]
[1732979821822,0.106447,96667.0,96666.0,0.001727]
[1732979822348,0.105447,96667.0,96666.0,0.10457221]
[1732979822565,0.104447,96667.0,96666.0,0.10457221]
[1732979822823,0.104447,96667.0,96666.0,0.13801451]
[1732979823104,0.104447,96667.0,96666.0,0.26791451]
[1732979823105,0.105447,96667.0,96666.0,0.26791451]
[1732979823571,0.106447,96667.0,96666.0,0.27191451]
[1732979823798,0.103447,96667.0,96666.0,0.25747221]
[1732979824032,0.09857865,96676.0,96667.0,0.023]
[1732979824296,0.00170623,96688.0,96672.0,0.27754346]
[1732979824557,0.10344,96674.0,96673.0,0.40338867]
[1732979824818,0.10344,96674.0,96673.0,0.13624106]
[1732979826536,0.10344,96674.0,96673.0,0.13724106]
[1732979826761,0.10344,96674.0,96673.0,0.13624106]
[1732979826987,0.10344,96674.0,96673.0,0.14024106]
[1732979828353,0.10344,96674.0,96673.0,0.55027147]
[1732979829041,0.10344,96674.0,96673.0,0.11924106]
[1732979829269,0.11122207,96674.0,96673.0,0.01639585]
[1732979830426,0.11122207,96674.0,96673.0,0.01439585]
[1732979830899,0.11122207,96674.0,96673.0,0.01039585]
[1732979831391,0.103445,96669.0,96668.0,0.27796699]
[1732979831608,0.103445,96669.0,96668.0,0.3808122]
[1732979832090,0.103445,96669.0,96668.0,0.10284521]
[1732979832797,0.103445,96669.0,96668.0,0.10384521]
[1732979833761,0.103445,96669.0,96668.0,0.10584521]
[1732979834415,0.103445,96669.0,96668.0,0.38398655]
[1732979834631,0.103445,96669.0,96668.0,0.10584521]
[1732979835545,0.103445,96669.0,96668.0,0.38400631]
[1732979836212,0.103445,96669.0,96668.0,0.10584521]
[1732979838571,0.182045,96669.0,96668.0,0.003]
[1732979838788,0.23939897,96669.0,96668.0,0.003]
[1732979839485,0.23939897,96669.0,96668.0,0.002]
[1732979839705,0.23939897,96669.0,96666.0,0.001727]
[1732979839706,0.103447,96667.0,96666.0,0.001727]
[1732979841091,0.11200097,96667.0,96666.0,0.001727]
[1732979841327,0.11400097,96667.0,96666.0,0.001727]
[1732979841817,0.105447,96667.0,96666.0,0.001727]
[1732979842723,0.106447,96667.0,96666.0,0.001727]
[1732979843223,0.103447,96667.0,96666.0,0.001727]
[1732979843680,0.105447,96667.0,96666.0,0.001727]
[1732979843892,0.103447,96667.0,96666.0,0.11496182]
[1732979844099,0.103447,96667.0,96666.0,0.10457221]
[1732979844309,0.104447,96667.0,96666.0,0.11496968]
[1732979844524,0.104447,96667.0,96666.0,0.39313078]
[1732979844525,0.105447,96667.0,96666.0,0.39313078]
[1732979844725,0.104447,96667.0,96666.0,0.11496968]
[1732979844935,0.104447,96667.0,96666.0,0.39327901]
[1732979845147,0.103447,96667.0,96666.0,0.39327901]
[1732979846224,0.103447,96667.0,96666.0,0.11496968]
[1732979846435,0.103447,96667.0,96666.0,0.39326745]
[1732979846906,0.103447,96667.0,96666.0,0.39426745]
[1732979847753,0.103447,96667.0,96666.0,0.11596968]
[1732979848183,0.103447,96667.0,96666.0,0.39428344]
[1732979848386,0.103447,96667.0,96666.0,0.11596968]
[1732979848634,0.103447,96667.0,96666.0,0.11696968]
[1732979849512,0.103447,96667.0,96666.0,0.39531966]
[1732979850010,0.103447,96667.0,96666.0,0.11696968]
[1732979850243,0.103447,96667.0,96666.0,0.39532039]
[1732979850445,0.103447,96667.0,96666.0,0.10657221]
[1732979850720,0.103447,96667.0,96666.0,0.39433022]
[1732979850928,0.103447,96667.0,96666.0,0.38293603]
[1732979851138,0.103447,96667.0,96666.0,0.39533151]
[1732979851365,0.103447,96667.0,96666.0,0.39433151]
[1732979851594,0.103447,96667.0,96666.0,0.3943464]
[1732979851856,0.103447,96667.0,96666.0,0.3933464]
[1732979852286,0.103447,96667.0,96666.0,0.11596769]
[1732979852743,0.103447,96667.0,96666.0,0.11496769]
[1732979853009,0.104447,96667.0,96666.0,0.11496769]
[1732979853234,0.103447,96667.0,96666.0,0.11496769]
[1732979853501,0.103447,96667.0,96666.0,0.11696769]
[1732979853712,0.103447,96667.0,96666.0,0.11596769]
[1732979854145,0.103447,96667.0,96666.0,0.11796769]
[1732979854379,0.103447,96667.0,96666.0,0.11596769]
[1732979854605,0.103447,96667.0,96666.0,0.11496769]
[1732979854818,0.103447,96667.0,96666.0,0.11696769]
[1732979855043,0.103447,96667.0,96666.0,0.11796769]
[1732979855479,0.103447,96667.0,96666.0,0.11696769]
[1732979855894,0.103447,96667.0,96666.0,0.11796769]
[1732979856354,0.103447,96667.0,96666.0,0.11696769]
[1732979856579,0.103447,96667.0,96666.0,0.11796769]
[1732979857280,0.103447,96667.0,96666.0,0.01312248]
[1732979857717,0.103447,96667.0,96666.0,0.29358578]
[1732979857718,0.10527768,96667.0,96666.0,0.29358578]
[1732979857950,0.103447,96667.0,96666.0,0.01512248]
[1732979858228,0.10527768,96667.0,96666.0,0.01512248]
[1732979858451,0.10527768,96667.0,96666.0,0.01312248]
[1732979858675,0.103447,96667.0,96666.0,0.01312248]
[1732979858898,0.105447,96667.0,96666.0,0.01312248]
[1732979859116,0.105447,96667.0,96666.0,0.01212248]
[1732979859362,0.10727768,96667.0,96666.0,0.01312248]
[1732979859827,0.105447,96667.0,96666.0,0.01212248]
[1732979860289,0.105447,96667.0,96666.0,0.01312248]
[1732979860971,0.10727768,96667.0,96666.0,0.01312248]
[1732979861435,0.10527768,96667.0,96666.0,0.01312248]
[1732979861654,0.103447,96667.0,96666.0,0.01312248]
[1732979861874,0.103447,96667.0,96666.0,0.01412248]
[1732979862134,0.103447,96667.0,96666.0,0.01312248]
[1732979862376,0.10527768,96667.0,96666.0,0.01212248]
[1732979862831,0.10527768,96667.0,96666.0,0.01312248]
[1732979864857,0.10527768,96667.0,96666.0,0.01212248]
[1732979865079,0.10527768,96667.0,96666.0,0.01312248]
[1732979865534,0.10527768,96667.0,96666.0,0.01412248]
[1732979868207,0.10527768,96667.0,96666.0,0.01312248]
[1732979868640,0.10527768,96667.0,96666.0,0.002727]
[1732979868861,0.10527768,96667.0,96666.0,0.001727]
[1732979869080,0.18177768,96667.0,96666.0,0.01209252]
[1732979869316,0.18188863,96667.0,96666.0,0.002727]
[1732979869538,0.18188863,96667.0,96666.0,0.003727]
[1732979869756,0.22888863,96667.0,96666.0,0.003727]
[1732979869980,0.22705795,96667.0,96666.0,0.001727]
[1732979870402,0.22805795,96667.0,96666.0,0.001727]
[1732979870858,0.22805795,96667.0,96666.0,0.01209252]
[1732979870859,0.18105795,96667.0,96666.0,0.01209252]
[1732979871069,0.18288863,96667.0,96666.0,0.01209252]
[1732979871282,0.18488863,96667.0,96666.0,0.01209252]
[1732979871705,0.18188863,96667.0,96666.0,0.01209252]
[1732979871920,0.18288863,96667.0,96666.0,0.01209252]
[1732979872160,0.10638863,96667.0,96666.0,0.01209252]
[1732979872593,0.10538863,96667.0,96666.0,0.01209252]
[1732979873331,0.10538863,96667.0,96666.0,0.42386752]
[1732979873523,0.10538863,96667.0,96666.0,0.001727]
[1732979873769,0.10538863,96667.0,96666.0,0.01209252]
[1732979873988,0.10538863,96667.0,96666.0,0.001727]
[1732979875130,0.10538863,96667.0,96666.0,0.42503386]
[1732979875347,0.10538863,96667.0,96666.0,0.01309252]
[1732979875813,0.10538863,96667.0,96666.0,0.002727]
[1732979876020,0.10538863,96667.0,96666.0,0.42505368]
[1732979876228,0.10538863,96667.0,96666.0,0.41468816]
[1732979876436,0.10538863,96667.0,96666.0,0.42505368]
[1732979876852,0.10538863,96667.0,96666.0,0.42505559]
[1732979877361,0.10538863,96667.0,96666.0,0.42505526]
[1732979877571,0.10538863,96667.0,96666.0,0.01309252]
[1732979878004,0.10538863,96667.0,96666.0,0.002727]
[1732979878211,0.10538863,96667.0,96666.0,0.01309442]
[1732979878418,0.10538863,96667.0,96666.0,0.002727]
[1732979878631,0.18498863,96667.0,96666.0,0.01309442]
[1732979878851,0.18498863,96667.0,96666.0,0.001727]
[1732979879099,0.23391348,96667.0,96666.0,0.01209442]
[1732979879312,0.2350828,96667.0,96666.0,0.001727]
[1732979879591,0.2350828,96667.0,96666.0,0.01209442]
[1732979879822,0.2350828,96667.0,96666.0,0.001727]
[1732979880056,0.2350828,96667.0,96666.0,0.01209442]
[1732979880315,0.2350828,96667.0,96666.0,0.001727]
[1732979880551,0.2350828,96667.0,96666.0,0.01209442]
[1732979880779,0.2350828,96667.0,96666.0,0.28072468]
[1732979881055,0.2340828,96667.0,96666.0,0.01209442]
[1732979881290,0.2350828,96667.0,96666.0,0.01209442]
[1732979881506,0.2330828,96667.0,96666.0,0.001727]
[1732979881961,0.2350828,96667.0,96666.0,0.001727]
[1732979882646,0.2350828,96667.0,96666.0,0.28071167]
[1732979883105,0.2350828,96667.0,96666.0,0.29107909]
[1732979883574,0.1070828,96667.0,96666.0,0.01209442]
[1732979883823,0.106447,96667.0,96666.0,0.01209442]
[1732979884088,0.106447,96667.0,96666.0,0.001727]
[1732979884588,0.105447,96667.0,96666.0,0.12757221]
[1732979884890,0.104447,96667.0,96666.0,0.12757221]
[1732979885073,0.104447,96667.0,96666.0,0.13796684]
[1732979885320,0.105447,96667.0,96666.0,0.13796684]
[1732979885586,0.103447,96667.0,96666.0,0.13796684]
[1732979885824,0.103447,96667.0,96666.0,0.14296684]
[1732979886291,0.103447,96667.0,96666.0,0.13896684]
[1732979886525,0.103447,96667.0,96666.0,0.14196684]
[1732979887183,0.103447,96667.0,96666.0,0.14096684]
[1732979887657,0.103447,96667.0,96666.0,0.14296684]
[1732979887850,0.103447,96667.0,96666.0,0.13996684]
[1732979888384,0.103447,96667.0,96666.0,0.14096684]
[1732979891183,0.103447,96667.0,96666.0,0.01512163]
[1732979891647,0.183047,96667.0,96666.0,0.004727]
[1732979891859,0.18487768,96667.0,96666.0,0.004727]
[1732979892291,0.18487768,96667.0,96666.0,0.42713006]
[1732979892553,0.18487768,96667.0,96666.0,0.01508801]
[1732979892770,0.18487768,96667.0,96666.0,0.004727]
[1732979893440,0.18487768,96667.0,96666.0,0.003727]
[1732979894609,0.18487768,96667.0,96666.0,0.01408801]
[1732979895730,0.18487768,96667.0,96666.0,0.01208801]
[1732979896179,0.18487768,96667.0,96666.0,0.001727]
[1732979897321,0.18487768,96667.0,96666.0,0.00193769]
[1732979897752,0.18587768,96667.0,96666.0,0.00193769]
[1732979897961,0.18587768,96667.0,96666.0,0.42432417]
[1732979898169,0.183047,96667.0,96666.0,0.0122987]
[1732979898385,0.18487768,96667.0,96666.0,0.0122987]
[1732979898611,0.18587768,96667.0,96666.0,0.00193769]
[1732979898835,0.18587768,96667.0,96666.0,0.41397656]
[1732979898836,0.18687768,96667.0,96666.0,0.41397656]
[1732979899039,0.184047,96667.0,96666.0,0.00193769]
[1732979899223,0.18587768,96667.0,96666.0,0.0122987]
[1732979899457,0.18687768,96667.0,96666.0,0.00193769]
[1732979899671,0.18687768,96667.0,96666.0,0.41397516]
[1732979899879,0.18687768,96667.0,96666.0,0.00193769]
[1732979899880,0.185047,96667.0,96666.0,0.00193769]
[1732979900100,0.18687768,96667.0,96666.0,0.42433877]
[1732979900316,0.18687768,96667.0,96666.0,0.0122987]
[1732979900701,0.18687768,96667.0,96666.0,0.00193769]
[1732979901686,0.18687768,96667.0,96666.0,0.41398648]
[1732979901907,0.185047,96667.0,96666.0,0.0122987]
[1732979902113,0.18687768,96667.0,96666.0,0.0122987]
[1732979902335,0.105447,96667.0,96666.0,0.00193769]
[1732979903186,0.103447,96667.0,96666.0,0.00193769]
[1732979903599,0.103447,96667.0,96666.0,0.00393769]
[1732979903856,0.103447,96667.0,96666.0,0.00293769]
[1732979904089,0.103447,96667.0,96666.0,0.00193769]
[1732979904250,0.103447,96667.0,96666.0,0.00293769]
[1732979905142,0.103447,96667.0,96666.0,0.00493769]
[1732979905847,0.103447,96667.0,96666.0,0.1077829]
[1732979906316,0.103447,96667.0,96666.0,0.11815117]
[1732979916105,0.06476289,96676.0,96666.0,0.11815117]
[1732979916350,0.103447,96667.0,96666.0,0.01530596]
[1732979916593,0.103447,96667.0,96666.0,0.1077829]
[1732979917074,0.103447,96667.0,96666.0,0.11514251]
[1732979918301,0.103447,96667.0,96666.0,0.11614251]
[1732979918749,0.103447,96667.0,96666.0,0.11514251]
[1732979919479,0.103447,96667.0,96666.0,0.11714251]
[1732979919934,0.103447,96667.0,96666.0,0.11514251]
[1732979920166,0.103447,96667.0,96666.0,0.11614251]
[1732979934640,0.206893,96669.0,96666.0,0.11614251]
[1732979934842,0.206893,96669.0,96667.0,0.10284521]
[1732979934996,0.310327,96672.0,96667.0,0.1030559]
[1732979935203,0.06476289,96676.0,96667.0,0.1030559]
[1732979935431,0.103446,96668.0,96667.0,0.1030559]
[1732979936475,0.103446,96668.0,96667.0,0.1040559]
[1732979936693,0.103446,96668.0,96667.0,0.11341253]
[1732979945910,0.00183068,96673.0,96667.0,0.11341253]
[1732979946132,0.06562619,96700.0,96667.0,0.11341253]
[1732979946133,0.06476289,96690.0,96669.0,0.31406362]
[1732979946392,0.103428,96686.0,96671.0,0.0494]
[1732979946610,0.20855723,96688.0,96672.0,0.10284521]
[1732979946840,0.06476289,96681.0,96672.0,0.11341418]
[1732979947302,0.103432,96682.0,96672.0,0.11341418]
[1732979947569,0.06476289,96682.0,96672.0,0.11341418]
[1732979947792,0.06476289,96682.0,96672.0,0.1030559]
[1732979948007,0.103436,96678.0,96677.0,0.3140804]
[1732979948251,0.103434,96680.0,96677.0,0.4171363]
[1732979948470,0.103434,96680.0,96678.0,0.10284521]
[1732979948744,0.103434,96680.0,96678.0,0.1030559]
[1732979948961,0.103432,96682.0,96678.0,0.1030559]
[1732979949179,0.103432,96682.0,96679.0,0.01035828]
[1732979949424,0.103432,96682.0,96680.0,0.10284521]
[1732979949635,0.103432,96682.0,96680.0,0.1030559]
[1732979950095,0.103432,96682.0,96681.0,0.01035828]
[1732979950321,0.105432,96682.0,96681.0,0.11341418]
[1732979950550,0.001,96682.0,96681.0,0.11341418]
[1732979950768,0.0008633,96687.0,96681.0,0.11341418]
[1732979951011,0.001,96682.0,96681.0,0.01056897]
[1732979952116,0.002,96682.0,96681.0,0.11341418]
[1732979952812,0.001,96682.0,96681.0,0.11341418]
[1732979953030,0.104431,96682.0,96681.0,0.11341418]
[1732979953522,0.206855,96686.0,96681.0,0.11341418]
[1732979953735,0.10343,96683.0,96682.0,0.10284521]
[1732979953921,0.10343,96683.0,96682.0,0.1030559]
[1732979954396,0.10343,96683.0,96682.0,0.11341418]
[1732979956394,0.001,96683.0,96682.0,0.11341418]
[1732979958648,0.10443,96683.0,96682.0,0.11341418]
[1732979958857,0.001,96683.0,96682.0,0.11341418]
[1732979959114,0.10443,96683.0,96682.0,0.11341418]
[1732979959779,0.001,96683.0,96682.0,0.11341418]
[1732979960207,0.10443,96683.0,96682.0,0.11341418]
[1732979962588,0.10443,96683.0,96682.0,0.1030559]
[1732979963051,0.10443,96683.0,96682.0,0.1047829]
[1732979965029,0.18733,96683.0,96682.0,0.1047829]
[1732979966383,0.10443,96683.0,96682.0,0.1047829]
[1732979966855,0.10443,96683.0,96682.0,0.11510088]
[1732979970509,0.001,96683.0,96682.0,0.11510088]
[1732979970927,0.10443,96683.0,96682.0,0.11510088]
[1732979971395,0.001,96683.0,96682.0,0.11510088]
[1732979972511,0.001,96683.0,96682.0,0.10478289]
[1732979972950,0.001,96683.0,96682.0,0.11511502]
[1732979975889,0.001,96683.0,96682.0,0.34497662]
[1732979976135,0.001,96683.0,96682.0,0.34314602]
[1732979976362,0.001,96683.0,96682.0,0.68707516]
[1732979976853,0.0008633,96687.0,96686.0,0.103427]
[1732979977074,0.0008633,96687.0,96686.0,0.20831327]
[1732979977295,0.0008633,96687.0,96686.0,0.21859061]
[1732979977516,0.0008633,96687.0,96686.0,0.21676023]
[1732979978123,0.0008633,96687.0,96686.0,0.36880675]
[1732979978353,0.0008633,96687.0,96686.0,0.41760675]
[1732979979036,0.0008633,96687.0,96686.0,0.76140959]
[1732979979258,0.0008633,96687.0,96686.0,0.448302]
[1732979979556,0.0008633,96687.0,96686.0,0.76629882]
[1732979979782,0.0008633,96687.0,96686.0,0.453302]
[1732979980436,0.0008633,96687.0,96686.0,0.529102]
[1732979980657,0.0008633,96687.0,96686.0,0.52910199]
[1732979982011,0.0008633,96687.0,96686.0,0.84207654]
[1732979982504,0.0008633,96687.0,96686.0,0.52910199]
[1732979983234,0.0008633,96687.0,96686.0,0.84205862]
[1732979983680,0.0008633,96687.0,96686.0,0.73863162]
[1732979983925,0.0008633,96687.0,96686.0,0.39497974]
[1732979984164,0.0008633,96687.0,96686.0,0.49840674]
[1732979984420,0.0008633,96687.0,96686.0,0.39497974]
[1732979984663,0.0008633,96687.0,96686.0,0.49840674]
[1732979984885,0.0008633,96687.0,96686.0,0.5290978]
[1732979985131,0.0008633,96687.0,96686.0,0.49840674]
[1732979985340,0.0008633,96687.0,96686.0,0.52909625]
[1732979985564,0.0008633,96687.0,96686.0,0.52909642]
[1732979985804,0.0008633,96687.0,96686.0,0.49840674]
[1732979986021,0.0008633,96687.0,96686.0,0.39497974]
[1732979986243,0.0008633,96687.0,96686.0,0.49840674]
[1732979988604,0.0008633,96687.0,96686.0,0.42260674]
[1732979988811,0.0008633,96687.0,96686.0,0.31917973]
[1732979989480,0.0008633,96687.0,96686.0,0.73567131]
[1732979990375,0.0008633,96687.0,96686.0,0.63224431]
[1732979990606,0.0008633,96687.0,96686.0,0.58344431]
[1732979991278,0.1042893,96687.0,96686.0,0.12037973]
[1732979992225,0.0008633,96687.0,96686.0,0.12037973]
[1732979993133,0.1042893,96687.0,96686.0,0.12037973]
[1732979993567,0.1832893,96687.0,96686.0,0.12037973]
[1732979993785,0.1832893,96687.0,96686.0,0.11337973]
[1732979994013,0.1832893,96687.0,96686.0,0.11537973]
[1732979994751,0.1832893,96687.0,96686.0,0.11337973]
[1732979995889,0.2320893,96687.0,96686.0,0.11537973]
[1732979996154,0.2320893,96687.0,96686.0,0.10510239]
[1732979996371,0.2320893,96687.0,96686.0,0.10810239]
[1732979996819,0.2320893,96687.0,96686.0,0.10510239]
[1732979997287,0.2320893,96687.0,96686.0,0.00025718]
[1732979997720,0.2320893,96687.0,96686.0,0.01047642]
[1732979997942,0.2320893,96687.0,96686.0,0.00225718]
[1732979998164,0.2320893,96687.0,96686.0,0.01147642]
[1732979998395,0.2320893,96687.0,96686.0,0.00125718]
[1732979998654,0.2320893,96687.0,96686.0,0.01320342]
[1732979998875,0.2320893,96687.0,96686.0,0.00298418]
[1732979999094,0.2320893,96687.0,96686.0,0.01320342]
[1732979999314,0.2320893,96687.0,96686.0,0.00298418]
[1732979999545,0.2320893,96687.0,96686.0,0.11504863]
[1732979999765,0.2320893,96687.0,96686.0,0.10582939]
[1732980000013,0.2320893,96687.0,96686.0,0.11604863]
[1732980000479,0.2320893,96687.0,96686.0,0.11704863]
[1732980000935,0.2320893,96687.0,96686.0,0.11604863]
[1732980001159,0.2320893,96687.0,96686.0,0.11904863]
[1732980001381,0.2320893,96687.0,96686.0,0.11804863]
[1732980002757,0.2320893,96687.0,96686.0,0.12004863]
[1732980003483,0.2320893,96687.0,96686.0,0.11504863]
[1732980003907,0.2320893,96687.0,96686.0,0.01320342]
[1732980003909,0.24139716,96687.0,96686.0,0.29159613]
[1732980004155,0.24239716,96687.0,96686.0,0.01320342]
[1732980004402,0.24239716,96687.0,96686.0,0.01220342]
[1732980004637,0.24139716,96687.0,96686.0,0.01320342]
[1732980004875,0.24139716,96687.0,96686.0,0.01420342]
[1732980005169,0.24139716,96687.0,96686.0,0.01320342]
[1732980005825,0.24156102,96687.0,96686.0,0.01320342]
[1732980006091,0.24156102,96687.0,96686.0,0.01220342]
[1732980006277,0.26456102,96687.0,96686.0,0.01220342]
[1732980006672,0.26456102,96687.0,96686.0,0.00198418]
[1732980007119,0.26456102,96687.0,96686.0,0.00298418]
[1732980009249,0.27456102,96687.0,96686.0,0.00298418]
[1732980010375,0.27456102,96687.0,96686.0,0.00198418]
[1732980010811,0.37940623,96687.0,96686.0,1.8e-07]
[1732980011015,0.37940623,96687.0,96682.0,0.001727]
[1732980011016,0.01,96683.0,96682.0,0.001727]
[1732980011238,0.2737324,96683.0,96682.0,0.001727]
[1732980011663,0.27190172,96683.0,96682.0,0.001727]
[1732980012582,0.37474693,96683.0,96682.0,0.001727]
[1732980012805,0.37474693,96683.0,96682.0,1e-06]
[1732980013488,0.37574693,96683.0,96682.0,1e-06]
[1732980013711,1.07574693,96683.0,96682.0,1e-06]
[1732980014401,1.07874693,96683.0,96682.0,1e-06]
[1732980022472,1.07874693,96683.0,96682.0,0.0017282]
[1732980022682,1.07961053,96683.0,96682.0,0.0017282]
[1732980030326,1.07961053,96683.0,96682.0,2e-07]
[1732980030806,0.01,96668.0,96666.0,2e-07]
[1732980031316,0.26405,96665.0,96664.0,8e-07]
[1732980031321,0.113459,96656.0,96646.0,0.0008634]
[1732980031581,0.26588968,96656.0,96646.0,0.0008634]
[1732980031839,0.27375584,96656.0,96655.0,0.99788349]
[1732980032349,0.75375584,96656.0,96655.0,0.99788349]
[1732980032829,0.75388545,96656.0,96655.0,0.99788349]
[1732980033522,0.85773066,96656.0,96655.0,0.89442349]
[1732980033751,0.86473066,96656.0,96655.0,0.79196349]
[1732980033973,0.85773066,96656.0,96655.0,0.79096349]
[1732980034415,0.86473066,96656.0,96655.0,0.79196349]
[1732980034885,0.86373066,96656.0,96655.0,0.68850349]
[1732980035099,0.86673066,96656.0,96655.0,0.68850349]
[1732980035542,0.86673066,96656.0,96655.0,0.69023109]
[1732980035765,0.86759446,96656.0,96655.0,0.58677109]
[1732980036644,0.86759446,96656.0,96655.0,0.56607909]
[1732980037513,0.86759446,96656.0,96655.0,0.54538709]
[1732980037720,0.86759446,96656.0,96655.0,0.46261909]
[1732980038136,0.86759446,96656.0,96655.0,0.44192709]
[1732980038351,0.86759446,96656.0,96655.0,0.40054309]
[1732980038811,0.86759446,96656.0,96655.0,0.37985109]
[1732980039016,0.87759446,96656.0,96655.0,0.29708309]
[1732980039640,0.87759446,96656.0,96655.0,0.27639109]
[1732980039872,0.87759446,96656.0,96655.0,0.23500709]
[1732980040163,0.77474925,96656.0,96655.0,0.1767746]
[1732980041262,0.856611,96656.0,96655.0,0.1353906]
[1732980041962,0.846611,96656.0,96655.0,0.1353906]
[1732980042189,0.856611,96656.0,96655.0,0.0733146]
[1732980042848,0.856611,96656.0,96655.0,0.0526226]
[1732980048327,0.846611,96656.0,96655.0,0.0526226]
[1732980048558,0.856611,96656.0,96655.0,0.0526226]
[1732980049490,0.729011,96656.0,96655.0,0.0526226]
[1732980049973,0.63714925,96656.0,96655.0,0.0526226]
[1732980050188,0.59445241,96656.0,96655.0,0.0526226]
[1732980050668,0.59445241,96656.0,96655.0,0.1295226]
[1732980051107,0.60417567,96656.0,96655.0,0.1295226]
[1732980051772,0.12117567,96656.0,96655.0,0.1295226]
[1732980051993,0.11717567,96656.0,96655.0,0.1285226]
[1732980052217,0.12417567,96656.0,96655.0,0.14656221]
[1732980052433,0.11445241,96656.0,96655.0,0.14656221]
[1732980052666,0.10445241,96656.0,96655.0,0.14556221]
[1732980052882,0.10545241,96656.0,96655.0,0.14556221]
[1732980053109,0.10745241,96656.0,96655.0,0.14556221]
[1732980053354,0.10545241,96656.0,96655.0,0.14556221]
[1732980053787,0.10745241,96656.0,96655.0,0.14556221]
[1732980054038,0.10745241,96656.0,96655.0,0.19286221]
[1732980054255,0.10645241,96656.0,96655.0,0.19286221]
[1732980054475,0.10745241,96656.0,96655.0,0.19286221]
[1732980054917,0.10645241,96656.0,96655.0,0.19286221]
[1732980055135,0.10445241,96656.0,96655.0,0.19286221]
[1732980055360,0.10445241,96656.0,96655.0,0.19386221]
[1732980056066,0.10445241,96656.0,96655.0,0.19486221]
[1732980056283,0.10445241,96656.0,96655.0,0.19586221]
[1732980060458,0.10445241,96656.0,96655.0,0.07166221]
[1732980060903,0.11417873,96656.0,96655.0,0.0546226]
[1732980061345,0.11417873,96656.0,96655.0,0.0536226]
[1732980061804,0.11417873,96656.0,96655.0,0.05383943]
[1732980062708,0.11417873,96656.0,96655.0,0.05183943]
[1732980063171,0.11517873,96656.0,96655.0,0.05183943]
[1732980063396,0.11700941,96656.0,96655.0,0.05183943]
[1732980063649,0.11600941,96656.0,96655.0,0.05183943]
[1732980065340,0.10445241,96656.0,96655.0,0.05183943]
[1732980065847,0.10445241,96656.0,96655.0,0.17973943]
[1732980066342,0.10445241,96656.0,96655.0,0.19667794]
[1732980066343,0.10545241,96656.0,96655.0,0.19667794]
[1732980066596,0.10445241,96656.0,96655.0,0.19667794]
[1732980067149,0.10545241,96656.0,96655.0,0.19667794]
[1732980067366,0.10445241,96656.0,96655.0,0.19667794]
[1732980067864,0.10445241,96656.0,96655.0,0.19767794]
[1732980068106,0.10445241,96656.0,96655.0,0.19667794]
[1732980069109,0.10445241,96656.0,96655.0,0.19867794]
[1732980069345,0.10445241,96656.0,96655.0,0.20167794]
[1732980069842,0.10445241,96656.0,96655.0,0.19867794]
[1732980070068,0.10445241,96656.0,96655.0,0.20167794]
[1732980073775,0.10445241,96656.0,96655.0,0.30452315]
[1732980074004,0.00099341,96656.0,96655.0,0.40798315]
[1732980074303,0.00099341,96656.0,96655.0,0.81868011]
[1732980074591,0.00099341,96656.0,96655.0,0.40798315]
[1732980074846,0.00099341,96656.0,96655.0,0.30452315]
[1732980075332,0.00099341,96656.0,96655.0,0.81650749]
[1732980075549,0.00099341,96656.0,96655.0,0.40298315]
[1732980075801,0.00099341,96656.0,96655.0,0.40598315]
[1732980076055,0.00099341,96656.0,96655.0,0.40998315]
[1732980076266,0.00099341,96656.0,96655.0,0.40598315]